[Event "11th Arad Open 2018"]
[Site "Arad"]
[Date "2018.08.09"]
[Round "6"]
[White "Miloi, Pavel-Dan"]
[Black "Velickovic, Sasa"]
[Result "0-1"]
[ECO "A43"]
[WhiteElo "2047"]
[BlackElo "2290"]
[Annotator "NA"]
[PlyCount "114"]
[EventDate "2018.08.05"]
[EventType "swiss"]
[EventCountry "ROU"]
[SourceTitle "playchess.com"]
[Source "ChessBase"]
[SourceQuality "1"]
[TimeControl "40/5400+30:1800+30"]

1. d4 {[%emt 0:00:00]} Nf6 {[%emt 0:00:00]} 2. Nf3 {[%emt 0:00:00]} c5 {[%emt 0:00:26]} 3. d5 {[%emt 0:00:00]} g6 {[%emt 0:00:27]} 4. c4 {[%emt 0:01:13]} d6 {[%emt 0:00:11]} 5. Nc3 {[%emt 0:00:40]} Bg7 {[%emt 0:00:09]} 6. g3 {[%emt 0:01:21]} O-O {[%emt 0:00:14]} 7. Bg2 {[%emt 0:00:16]} e6 {[%emt 0:00:34]} 8. O-O {[%emt 0:02:29]} exd5 {[%emt 0:00:08]} 9. cxd5 {[%emt 0:01:06]} a6 {[%emt 0:00:30]} 10. a4 {[%emt 0:00:05]} Nbd7 {[%emt 0:01:19]} 11. Bf4 {[%emt 0:02:58]} Qe7 {[%emt 0:03:21]} 12. a5 {[%emt 0:03:55]} h6 {[%emt 0:01:57]} 13. h4 {[%emt 0:02:18]} Nh5 {[%emt 0:06:09]} 14. Bd2 {[%emt 0:01:59]} f5 {[%emt 0:02:02]} 15. Qc1 {[%emt 0:04:46]} Kh7 {[%emt 0:02:18]} 16. e4 {[%emt 0:08:09]} Ndf6 {[%emt 0:08:15]} 17. Re1 {[%emt 0:07:12]} fxe4 {[%emt 0:09:05]} 18. Nxe4 {[%emt 0:04:11]} Qd8 {[%emt 0:03:31]} 19. Nxf6+ {[%emt 0:10:16]} Nxf6 {[%emt 0:00:08]} 20. Qc4 {[%emt 0:00:32]} Bd7 {[%emt 0:04:25]} 21. Ra3 {[%emt 0:07:18]} Rf7 {[%emt 0:08:00]} 22. Rae3 {[%emt 0:08:00]} Qf8 {[%emt 0:02:50]} 23. Qb3 {[%emt 0:02:31]} Ng4 {[%emt 0:08:35]} 24. R3e2 {[%emt 0:01:13]} Bf5 {[%emt 0:20:37]} 25. Bf4 {[%emt 0:05:03]} Rd8 {[%emt 0:01:23]} 26. h5 {[%emt 0:04:19]} gxh5 {[%emt 0:01:21]} 27. Nh4 {[%emt 0:00:42]} Kh8 {[%emt 0:00:13]} 28. Be4 {[%emt 0:04:02]} Bxe4 {[%emt 0:00:05]} 29. Rxe4 {[%emt 0:00:07]} Rf6 {[%emt 0:00:02]} 30. Qxb7 {[%emt 0:02:00]} Qg8 {[%emt 0:04:28]} 31. Qc6 {[%emt 0:06:25]} Qh7 {[%emt 0:02:16]} 32. Re8+ {[%emt 0:00:48]} Rxe8 {[%emt 0:07:51]} 33. Qxe8+ {[%emt 0:01:16]} Bf8 {[%emt 0:00:05]} 34. Qxh5 {[%emt 0:02:02]} Qg8 {[%emt 0:01:09]} 35. Re8 {[%emt 0:03:33]} Kh7 {[%emt 0:00:50]} 36. Nf3 {[%emt 0:02:43]} Rxf4 {[%emt 0:01:50]} 37. Ng5+ {[%emt 0:01:02]} Qxg5 {[%emt 0:00:11]} 38. Qxg5 {[%emt 0:00:05]} hxg5 {[%emt 0:00:04]} 39. gxf4 {[%emt 0:00:07]} Bg7 {[%emt 0:00:15]} 40. b3 {[%emt 0:00:00]} gxf4 {[%emt 0:00:00]} 41. Kg2 {[%emt 0:19:16]} Bc3 {[%emt 0:23:02]} 42. Ra8 {[%emt 0:01:09]} Bxa5 {[%emt 0:00:06]} 43. Rxa6 {[%emt 0:00:06]} Bc3 {[%emt 0:01:25]} 44. Rxd6 {[%emt 0:01:37]} Ne5 {[%emt 0:00:04]} 45. Rd8 {[%emt 0:03:47]} Kg6 {[%emt 0:03:44]} 46. d6 {[%emt 0:00:58]} Kf7 {[%emt 0:01:32]} 47. f3 {[%emt 0:06:38]} Ke6 {[%emt 0:01:17]} 48. Rf8 {[%emt 0:01:48]} Bd2 {[%emt 0:00:36]} 49. Kf2 {[%emt 0:00:25]} Kxd6 {[%emt 0:00:23]} 50. Ke2 {[%emt 0:00:19]} Be3 {[%emt 0:00:06]} 51. Rb8 {[%emt 0:01:01]} Nc6 {[%emt 0:00:18]} 52. Rf8 {[%emt 0:01:39]} Nd4+ {[%emt 0:00:21]} 53. Kd3 {[%emt 0:00:01]} Nxb3 {[%emt 0:00:46]} 54. Rf6+ {[%emt 0:00:56]} Kd5 {[%emt 0:00:49]} 55. Rf5+ {[%emt 0:00:06]} Kc6 {[%emt 0:00:07]} 56. Kc4 {[%emt 0:00:58]} Nd2+ {[%emt 0:00:13]} 57. Kc3 {[%emt 0:00:01]} Nxf3 {[%emt 0:00:14]} 0-1

[Event "11th Arad Open 2018"]
[Site "Arad"]
[Date "2018.08.09"]
[Round "6"]
[White "Magold, Victor"]
[Black "Banzea, Alexandru-Bogdan"]
[Result "0-1"]
[ECO "A15"]
[WhiteElo "2032"]
[BlackElo "2313"]
[Annotator "NA"]
[PlyCount "44"]
[EventDate "2018.08.05"]
[EventType "swiss"]
[EventCountry "ROU"]
[SourceTitle "playchess.com"]
[Source "ChessBase"]
[SourceQuality "1"]
[TimeControl "40/5400+30:1800+30"]

1. c4 {[%emt 0:00:00]} Nf6 {[%emt 0:00:59]} 2. g3 {[%emt 0:00:00]} g6 {[%emt 0:01:46]} 3. Bg2 {[%emt 0:00:00]} Bg7 {[%emt 0:00:08]} 4. Nf3 {[%emt 0:00:01]} O-O {[%emt 0:00:31]} 5. O-O {[%emt 0:00:04]} d6 {[%emt 0:00:07]} 6. Nc3 {[%emt 0:01:34]} e5 {[%emt 0:00:15]} 7. d4 {[%emt 0:00:43]} Nbd7 {[%emt 0:00:19]} 8. dxe5 {[%emt 0:00:14]} dxe5 {[%emt 0:00:33]} 9. Qc2 {[%emt 0:00:53]} c6 {[%emt 0:00:28]} 10. Rd1 {[%emt 0:03:00]} Qe7 {[%emt 0:01:00]} 11. Bg5 {[%emt 0:02:03]} h6 {[%emt 0:00:26]} 12. Bxf6 {[%emt 0:00:05]} Nxf6 {[%emt 0:00:25]} 13. e3 {[%emt 0:02:19]} Bf5 {[%emt 0:02:28]} 14. Qe2 {[%emt 0:01:18]} e4 {[%emt 0:00:53]} 15. Nd4 {[%emt 0:00:15]} Bg4 {[%emt 0:00:06]} 16. f3 {[%emt 0:00:03]} exf3 {[%emt 0:00:10]} 17. Bxf3 {[%emt 0:00:04]} Bxf3 {[%emt 0:00:59]} 18. Qxf3 {[%emt 0:00:04]} Rfe8 {[%emt 0:01:01]} 19. Re1 {[%emt 0:00:05]} h5 {[%emt 0:00:56]} 20. Re2 {[%emt 0:03:30]} Ng4 {[%emt 0:01:01]} 21. Rae1 {[%emt 0:01:02]} Ne5 {[%emt 0:01:01]} 22. Qf4 {[%emt 0:01:16]} Nd3 {[%emt 0:00:22]} 0-1

[Event "11th Arad Open 2018"]
[Site "Arad"]
[Date "2018.08.09"]
[Round "6"]
[White "Stepanencu, Nicodim-Cosmin"]
[Black "Cerovic, Danilo"]
[Result "1/2-1/2"]
[ECO "A09"]
[WhiteElo "2022"]
[BlackElo "2320"]
[Annotator "NA"]
[PlyCount "64"]
[EventDate "2018.08.05"]
[EventType "swiss"]
[EventCountry "ROU"]
[SourceTitle "playchess.com"]
[Source "ChessBase"]
[SourceQuality "1"]
[TimeControl "40/5400+30:1800+30"]

1. Nf3 {[%emt 0:00:00]} d5 {[%emt 0:00:00]} 2. c4 {[%emt 0:00:00]} d4 {[%emt 0:00:02]} 3. e3 {[%emt 0:00:00]} Nc6 {[%emt 0:00:08]} 4. b4 {[%emt 0:03:45]} Bg4 {[%emt 0:16:45]} 5. Qa4 {[%emt 0:30:00]} Qd7 {[%emt 0:03:33]} 6. Nxd4 {[%emt 0:03:03]} Nxd4 {[%emt 0:03:50]} 7. Qxd7+ {[%emt 0:00:15]} Bxd7 {[%emt 0:00:01]} 8. exd4 {[%emt 0:00:09]} g6 {[%emt 0:00:02]} 9. Bb2 {[%emt 0:09:39]} Bg7 {[%emt 0:00:05]} 10. d3 {[%emt 0:00:29]} Nh6 {[%emt 0:01:52]} 11. Nd2 {[%emt 0:01:50]} b6 {[%emt 0:05:08]} 12. Be2 {[%emt 0:14:31]} Nf5 {[%emt 0:08:07]} 13. Nb3 {[%emt 0:06:18]} Bc6 {[%emt 0:04:54]} 14. Bg4 {[%emt 0:12:57]} Bxg2 {[%emt 0:08:37]} 15. Rg1 {[%emt 0:00:01]} Nh4 {[%emt 0:00:01]} 16. O-O-O {[%emt 0:00:37]} Bf3 {[%emt 0:02:18]} 17. Bxf3 {[%emt 0:01:57]} Nxf3 {[%emt 0:00:08]} 18. Rg3 {[%emt 0:00:04]} Nh4 {[%emt 0:00:45]} 19. d5 {[%emt 0:01:10]} Bxb2+ {[%emt 0:00:04]} 20. Kxb2 {[%emt 0:00:02]} Nf5 {[%emt 0:00:43]} 21. Rg4 {[%emt 0:00:18]} O-O-O {[%emt 0:06:24]} 22. Kc3 {[%emt 0:01:57]} Rd6 {[%emt 0:00:56]} 23. Nd2 {[%emt 0:02:47]} Rf8 {[%emt 0:04:09]} 24. Re1 {[%emt 0:00:42]} Rdd8 {[%emt 0:02:26]} 25. Nf3 {[%emt 0:00:48]} Rd6 {[%emt 0:07:36]} 26. Ng5 {[%emt 0:04:26]} h6 {[%emt 0:01:30]} 27. Ne4 {[%emt 0:00:09]} Rdd8 {[%emt 0:00:58]} 28. Ng3 {[%emt 0:01:05]} Nxg3 {[%emt 0:01:31]} 29. fxg3 {[%emt 0:00:16]} Kd7 {[%emt 0:00:58]} 30. Rge4 {[%emt 0:00:28]} Rde8 {[%emt 0:00:08]} 31. Rf1 {[%emt 0:01:41]} e6 {[%emt 0:07:42]} 32. Rf6 {[%emt 0:00:38]} Ke7 {[%emt 0:02:08]} 1/2-1/2

[Event "11th Arad Open 2018"]
[Site "Arad"]
[Date "2018.08.09"]
[Round "6"]
[White "Albu, George"]
[Black "Terbe, Julianna"]
[Result "0-1"]
[ECO "D15"]
[WhiteElo "2016"]
[BlackElo "2234"]
[Annotator "NA"]
[PlyCount "104"]
[EventDate "2018.08.05"]
[EventType "swiss"]
[EventCountry "ROU"]
[SourceTitle "playchess.com"]
[Source "ChessBase"]
[SourceQuality "1"]
[TimeControl "40/5400+30:1800+30"]

1. d4 d5 2. c4 c6 3. Nf3 Nf6 4. Nc3 dxc4 5. e4 b5 6. e5 Nd5 7. a4 e6 8. Be2 Bb7 9. O-O Nxc3 10. bxc3 Be7 11. Rb1 Qd7 12. Bg5 a6 13. Qd2 h6 14. Bxe7 Qxe7 15. Qb2 Ra7 16. Bxc4 Nd7 17. Bd3 O-O 18. Nd2 Nb6 19. Bc2 Nd5 20. g3 c5 21. Ne4 cxd4 22. cxd4 bxa4 23. Nc5 Bc6 24. Ra1 Qc7 25. Rfb1 a5 26. Bxa4 Nb4 27. Qa3 Rd8 28. Qc3 Ba8 29. Rc1 Qe7 30. Bc2 Nxc2 31. Rxc2 Qc7 32. Ra3 Qc6 33. f3 Qd5 34. Rd2 Rb8 35. Rd1 Rb4 36. Ne4 Rc4 37. Qd2 Bc6 38. Rc3 Rxc3 39. Qxc3 a4 40. Ra1 a3 41. Kf2 a2 42. Nd2 Ra3 43. Qb2 Bb5 44. h4 Bc6 45. Rc1 Qa5 46. Ra1 Bd5 47. h5 Qa7 48. Ke2 Qa6+ 49. Kf2 Qd3 50. Rc1 a1=Q 51. Rxa1 Rxa1 52. Qxa1 Qxd2+ 0-1

[Event "11th Arad Open 2018"]
[Site "Arad"]
[Date "2018.08.10"]
[Round "7"]
[White "Vajda, Levente"]
[Black "Deepan Chakkravarthy J"]
[Result "1/2-1/2"]
[ECO "B22"]
[WhiteElo "2558"]
[BlackElo "2530"]
[Annotator "ChessBase"]
[PlyCount "88"]
[EventDate "2018.08.05"]
[EventType "swiss"]
[EventCountry "ROU"]
[SourceTitle "playchess.com"]
[Source "ChessBase"]
[SourceQuality "1"]
[TimeControl "40/5400+30:1800+30"]

1. e4 {[%emt 0:00:00]} c5 {[%emt 0:00:00]} 2. c3 {[%emt 0:00:00]} Nf6 {[%emt 0:00:19]} 3. e5 {[%emt 0:00:00]} Nd5 {[%emt 0:00:04]} 4. d4 {[%emt 0:00:17]} cxd4 {[%emt 0:00:08]} 5. Nf3 {[%emt 0:00:19]} Nc6 {[%emt 0:00:08]} 6. cxd4 {[%emt 0:00:14]} d6 {[%emt 0:00:21]} 7. Bc4 {[%emt 0:00:46]} e6 {[%emt 0:01:07]} 8. O-O {[%emt 0:00:06]} Be7 {[%emt 0:00:05]} 9. Qe2 {[%emt 0:00:06]} O-O {[%emt 0:00:09]} 10. Nc3 {[%emt 0:00:05]} dxe5 {[%emt 0:00:22]} 11. dxe5 {[%emt 0:00:05]} Nxc3 {[%emt 0:00:04]} 12. bxc3 {[%emt 0:00:05]} Qa5 {[%emt 0:00:34]} 13. Bd2 {[%emt 0:00:57]} Rd8 {[%emt 0:00:12]} 14. Rfe1 {[%emt 0:00:05]} Bd7 {[%emt 0:03:24]} 15. Bb3 {[%emt 0:06:14]} Be8 {[%emt 0:18:41]} 16. h4 {[%emt 0:00:12]} Qa6 {[%emt 0:05:20]} 17. Qxa6 {[%emt 0:04:26]} bxa6 {[%emt 0:00:13]} 18. Bc4 {[%emt 0:00:10]} a5 {[%emt 0:01:15]} 19. h5 {[%emt 0:00:25]} h6 {[%emt 0:00:10]} 20. a4 {[%emt 0:00:19]} Bc5 {[%emt 0:04:01]} 21. Be3 {[%emt 0:00:27]} Bxe3 {[%emt 0:00:38]} 22. Rxe3 {[%emt 0:00:14]} Rab8 {[%emt 0:00:08]} 23. Bb5 {[%emt 0:03:36]} Kf8 {[%emt 0:00:30]} 24. Re4 {[%emt 0:02:18]} Rb6 {[%emt 0:03:30]} 25. c4 {[%emt 0:05:48]} a6 {[%emt 0:00:42]} 26. Bxc6 {[%emt 0:08:44]} Bxc6 {[%emt 0:04:15]} 27. Rf4 {[%emt 0:00:03]} Rb4 {[%emt 0:13:12]} 28. Nd4 {[%emt 0:02:21]} Bd7 {[%emt 0:00:01]} 29. Nc2 {[%emt 0:19:53]} Rb2 {[%emt 0:03:26]} 30. Ne3 {[%emt 0:01:39]} Rdb8 {[%emt 0:00:52]} 31. Kh2 {[%emt 0:01:19]} R8b4 {[%emt 0:01:57]} 32. Rd1 {[%emt 0:01:09]} Bxa4 {[%emt 0:07:11]} 33. Rd8+ {[%emt 0:04:51]} Be8 {[%emt 0:00:03]} 34. Ra8 {[%emt 0:00:11]} a4 {[%emt 0:01:07]} 35. Rxa6 {[%emt 0:02:32]} Rd2 {[%emt 0:03:54]} 36. Ra7 {[%emt 0:05:35]} Rd7 {[%emt 0:20:00]} 37. Ra8 {[%emt 0:01:54]} Rc7 {[%emt 0:01:19]} 38. Rd4 {[%emt 0:04:05]} Ke7 {[%emt 0:00:12]} 39. Rd6 {[%emt 0:11:37]} Rbb7 {[%emt 0:00:22]} 40. Rda6 {[%emt 0:00:00]} Bc6 {[%emt 0:00:00]} 41. Nc2 {[%emt 0:27:45]} Rb2 {[%emt 0:25:54]} 42. R8a7 {[%emt 0:00:25]} Rd7 {[%emt 0:07:22]} 43. Nd4 {[%emt 0:07:43]} Bb7 {[%emt 0:00:09]} 44. c5 {[%emt 0:00:09]} Rxd4 1/2-1/2

[Event "11th Arad Open 2018"]
[Site "Arad"]
[Date "2018.08.10"]
[Round "7"]
[White "Miron, Lucian-Costin"]
[Black "Bogdan, Dan"]
[Result "1/2-1/2"]
[ECO "A84"]
[WhiteElo "2460"]
[BlackElo "2382"]
[Annotator "ChessBase"]
[PlyCount "21"]
[EventDate "2018.08.05"]
[EventType "swiss"]
[EventCountry "ROU"]
[SourceTitle "playchess.com"]
[Source "ChessBase"]
[SourceQuality "1"]
[TimeControl "40/5400+30:1800+30"]

1. d4 {[%emt 0:00:22]} f5 {[%emt 0:00:27]} 2. c4 {[%emt 0:00:12]} d6 {[%emt 0:01:36]} 3. Nc3 {[%emt 0:06:44]} e5 {[%emt 0:02:03]} 4. dxe5 {[%emt 0:14:58]} dxe5 {[%emt 0:00:21]} 5. Qxd8+ {[%emt 0:00:04]} Kxd8 {[%emt 0:00:08]} 6. e4 {[%emt 0:00:28]} Nf6 {[%emt 0:05:10]} 7. Bg5 {[%emt 0:21:22]} fxe4 {[%emt 0:05:30]} 8. Nd5 {[%emt 0:04:55]} Nbd7 {[%emt 0:00:31]} 9. O-O-O {[%emt 0:04:38]} Be7 {[%emt 0:01:13]} 10. Nc3 {[%emt 0:03:31]} c6 {[%emt 0:02:12]} 11. Nge2 1/2-1/2

[Event "11th Arad Open 2018"]
[Site "Arad"]
[Date "2018.08.10"]
[Round "7"]
[White "Womacka, Mathias"]
[Black "Balla, Tamas-Kristof"]
[Result "1-0"]
[ECO "B42"]
[WhiteElo "2450"]
[BlackElo "2352"]
[Annotator "ChessBase"]
[PlyCount "57"]
[EventDate "2018.08.05"]
[EventType "swiss"]
[EventCountry "ROU"]
[SourceTitle "playchess.com"]
[Source "ChessBase"]
[SourceQuality "1"]
[TimeControl "40/5400+30:1800+30"]

1. e4 {[%emt 0:00:00]} c5 {[%emt 0:08:13]} 2. Nf3 {[%emt 0:00:03]} e6 {[%emt 0:00:30]} 3. d4 {[%emt 0:00:30]} cxd4 {[%emt 0:00:30]} 4. Nxd4 {[%emt 0:00:30]} a6 {[%emt 0:00:30]} 5. Bd3 {[%emt 0:00:30]} Nf6 {[%emt 0:00:30]} 6. O-O {[%emt 0:00:30]} Qc7 {[%emt 0:00:30]} 7. Qe2 {[%emt 0:00:30]} d6 {[%emt 0:00:30]} 8. c4 {[%emt 0:00:30]} g6 {[%emt 0:00:30]} 9. Nc3 {[%emt 0:00:30]} Bg7 {[%emt 0:00:30]} 10. Rd1 {[%emt 0:00:30]} O-O {[%emt 0:00:30]} 11. Nf3 {[%emt 0:00:30]} Nc6 {[%emt 0:00:30]} 12. h3 {[%emt 0:00:30]} Nd7 {[%emt 0:00:30]} 13. Be3 {[%emt 0:00:30]} Bxc3 {[%emt 0:00:30]} 14. bxc3 {[%emt 0:00:30]} f6 {[%emt 0:00:30]} 15. Nh2 {[%emt 0:00:30]} e5 {[%emt 0:00:30]} 16. Nf1 {[%emt 0:00:30]} Nc5 {[%emt 0:00:30]} 17. Bh6 {[%emt 0:00:30]} Rf7 {[%emt 0:00:30]} 18. Ne3 {[%emt 0:00:30]} Be6 {[%emt 0:00:30]} 19. Bc2 {[%emt 0:00:30]} Kh8 {[%emt 0:00:30]} 20. Rd2 {[%emt 0:00:30]} Ne7 {[%emt 0:00:30]} 21. Nd5 {[%emt 0:00:30]} Bxd5 {[%emt 0:00:30]} 22. cxd5 {[%emt 0:00:30]} g5 {[%emt 0:00:30]} 23. h4 {[%emt 0:00:30]} gxh4 {[%emt 0:00:30]} 24. Qh5 {[%emt 0:00:30]} Ng6 {[%emt 0:00:30]} 25. Re1 {[%emt 0:00:30]} Qa5 {[%emt 0:00:30]} 26. Bd1 {[%emt 0:00:30]} Qxc3 {[%emt 0:00:30]} 27. Bg4 {[%emt 0:00:30]} Nd3 {[%emt 0:00:30]} 28. Be6 {[%emt 0:00:30]} Rc7 {[%emt 0:00:30]} 29. Qf5 {[%emt 0:00:30]} 1-0

[Event "11th Arad Open 2018"]
[Site "Arad"]
[Date "2018.08.10"]
[Round "7"]
[White "Zawadzka, Jolanta"]
[Black "Trifan, Andrei Ioan"]
[Result "1-0"]
[ECO "C45"]
[WhiteElo "2435"]
[BlackElo "2308"]
[Annotator "NA RC"]
[PlyCount "75"]
[EventDate "2018.08.05"]
[EventType "swiss"]
[EventCountry "ROU"]
[SourceTitle "playchess.com"]
[Source "ChessBase"]
[SourceQuality "1"]
[TimeControl "40/5400+30:1800+30"]

1. e4 {[%emt 0:00:27]} e5 {[%emt 0:00:00]} 2. Nf3 {[%emt 0:00:08]} Nc6 {[%emt 0:00:39]} 3. d4 {[%emt 0:00:10]} exd4 {[%emt 0:00:49]} 4. Nxd4 {[%emt 0:00:07]} Bc5 {[%emt 0:01:15]} 5. Nb3 {[%emt 0:00:12]} Bb6 {[%emt 0:00:44]} 6. Qe2 {[%emt 0:00:26]} a5 {[%emt 0:06:08]} 7. a4 {[%emt 0:00:11]} d6 {[%emt 0:02:09]} 8. Be3 {[%emt 0:00:28]} Bxe3 {[%emt 0:02:15]} 9. Qxe3 {[%emt 0:00:07]} Nf6 {[%emt 0:01:49]} 10. Nc3 {[%emt 0:01:04]} Be6 {[%emt 0:07:56]} 11. Nd4 {[%emt 0:09:38]} Bd7 {[%emt 0:08:16]} 12. O-O-O {[%emt 0:05:55]} O-O {[%emt 0:04:51]} 13. f3 {[%emt 0:03:43]} Re8 {[%emt 0:04:28]} 14. g4 {[%emt 0:04:51]} Nxd4 {[%emt 0:06:53]} 15. Qxd4 {[%emt 0:00:56]} Bc6 {[%emt 0:01:45]} 16. Bc4 {[%emt 0:09:05]} Nd7 {[%emt 0:03:39]} 17. h4 {[%emt 0:08:13]} Qf6 {[%emt 0:04:16]} 18. Qe3 {[%emt 0:04:41]} Nb6 {[%emt 0:06:06]} 19. Bb3 {[%emt 0:01:35]} Rad8 {[%emt 0:06:32]} 20. g5 {[%emt 0:03:57]} Qe5 {[%emt 0:03:39]} 21. h5 {[%emt 0:01:25]} d5 {[%emt 0:03:29]} 22. g6 {[%emt 0:02:01]} Qf6 {[%emt 0:05:06]} 23. gxf7+ {[%emt 0:06:25]} Qxf7 {[%emt 0:01:15]} 24. h6 {[%emt 0:00:46]} Re6 {[%emt 0:03:31]} 25. hxg7 {[%emt 0:04:03]} Rf6 {[%emt 0:01:22]} 26. Qg5 {[%emt 0:11:02]} Qxg7 {[%emt 0:02:36]} 27. Qh4 {[%emt 0:00:09]} Rdf8 {[%emt 0:01:30]} 28. Rdg1 {[%emt 0:01:19]} Rg6 {[%emt 0:00:13]} 29. Rxg6 {[%emt 0:00:05]} Qxg6 {[%emt 0:02:05]} 30. exd5 {[%emt 0:00:17]} Be8 {[%emt 0:00:38]} 31. d6+ {[%emt 0:01:32]} Bf7 {[%emt 0:00:30]} 32. Qd4 {[%emt 0:02:48]} Bxb3 {[%emt 0:00:25]} 33. Rg1 {[%emt 0:00:19]} Bxc2 {[%emt 0:00:34]} 34. Rxg6+ {[%emt 0:00:30]} Bxg6 {[%emt 0:00:03]} 35. dxc7 {[%emt 0:00:16]} Nc8 {[%emt 0:00:25]} 36. Qd5+ {[%emt 0:00:45]} Kg7 {[%emt 0:00:36]} 37. Qe5+ {[%emt 0:00:35]} Kg8 {[%emt 0:00:30]} 38. Nd5 {[%emt 0:01:02]} 1-0

[Event "11th Arad Open 2018"]
[Site "Arad"]
[Date "2018.08.10"]
[Round "7"]
[White "Petrisor, Adrian-Marian"]
[Black "Weinzettl, Ernst"]
[Result "1-0"]
[ECO "C05"]
[WhiteElo "2416"]
[BlackElo "2215"]
[Annotator "NA"]
[PlyCount "79"]
[EventDate "2018.08.05"]
[EventType "swiss"]
[EventCountry "ROU"]
[SourceTitle "playchess.com"]
[Source "ChessBase"]
[SourceQuality "1"]
[TimeControl "40/5400+30:1800+30"]

1. e4 {[%emt 0:00:00]} e6 {[%emt 0:00:00]} 2. d4 {[%emt 0:00:09]} d5 {[%emt 0:00:00]} 3. Nd2 {[%emt 0:02:36]} Nf6 {[%emt 0:00:40]} 4. e5 {[%emt 0:03:54]} Nfd7 {[%emt 0:00:09]} 5. Bd3 {[%emt 0:00:11]} c5 {[%emt 0:00:26]} 6. c3 {[%emt 0:00:05]} Nc6 {[%emt 0:00:14]} 7. Ndf3 {[%emt 0:00:24]} cxd4 {[%emt 0:01:03]} 8. cxd4 {[%emt 0:00:06]} Qa5+ {[%emt 0:11:07]} 9. Bd2 {[%emt 0:03:14]} Qb6 {[%emt 0:11:01]} 10. Bc3 {[%emt 0:01:44]} a5 {[%emt 0:06:38]} 11. Ne2 {[%emt 0:01:12]} a4 {[%emt 0:01:34]} 12. O-O {[%emt 0:00:40]} a3 {[%emt 0:00:21]} 13. Rb1 {[%emt 0:02:00]} axb2 {[%emt 0:08:05]} 14. Rxb2 {[%emt 0:00:07]} Qa7 {[%emt 0:00:04]} 15. Qb1 {[%emt 0:06:52]} g6 {[%emt 0:06:58]} 16. h4 {[%emt 0:01:37]} Na5 {[%emt 0:02:58]} 17. Nf4 {[%emt 0:06:26]} Be7 {[%emt 0:07:01]} 18. Ng5 {[%emt 0:04:26]} Nc4 {[%emt 0:04:06]} 19. Bxc4 {[%emt 0:01:50]} dxc4 {[%emt 0:00:08]} 20. d5 {[%emt 0:00:35]} Bxg5 {[%emt 0:09:24]} 21. hxg5 {[%emt 0:00:30]} O-O {[%emt 0:00:15]} 22. dxe6 {[%emt 0:00:21]} fxe6 {[%emt 0:00:22]} 23. Nxe6 {[%emt 0:00:59]} Rf5 {[%emt 0:01:00]} 24. Nc7 {[%emt 0:02:36]} Nxe5 {[%emt 0:04:26]} 25. Bxe5 {[%emt 0:01:56]} Rxe5 {[%emt 0:00:07]} 26. Nxa8 {[%emt 0:00:07]} Qxa8 {[%emt 0:00:06]} 27. Rb6 {[%emt 0:06:08]} Qa5 {[%emt 0:02:14]} 28. Rd1 {[%emt 0:08:37]} Kf7 {[%emt 0:03:36]} 29. Rc1 {[%emt 0:17:28]} Re7 {[%emt 0:08:45]} 30. Rf6+ {[%emt 0:04:21]} Kg8 {[%emt 0:00:57]} 31. Rf4 {[%emt 0:07:32]} Be6 {[%emt 0:03:02]} 32. g3 {[%emt 0:12:14]} Qxg5 {[%emt 0:06:23]} 33. Qb6 {[%emt 0:00:05]} Bf7 {[%emt 0:00:35]} 34. Qd4 {[%emt 0:03:45]} Qe5 {[%emt 0:00:48]} 35. Qd8+ {[%emt 0:00:51]} Kg7 {[%emt 0:00:59]} 36. Rcxc4 {[%emt 0:00:57]} Re8 {[%emt 0:00:06]} 37. Qc7 {[%emt 0:00:11]} Qe1+ {[%emt 0:00:18]} 38. Kh2 {[%emt 0:00:47]} Re7 {[%emt 0:00:06]} 39. Qd6 {[%emt 0:00:39]} g5 {[%emt 0:01:06]} 40. Qf6+ {[%emt 0:00:00]} 1-0

[Event "11th Arad Open 2018"]
[Site "Arad"]
[Date "2018.08.10"]
[Round "7"]
[White "Peptan, Corina-Isabela"]
[Black "Stanca, Adrian"]
[Result "1-0"]
[ECO "D20"]
[WhiteElo "2380"]
[BlackElo "2208"]
[Annotator "NA"]
[PlyCount "55"]
[EventDate "2018.08.05"]
[EventType "swiss"]
[EventCountry "ROU"]
[SourceTitle "playchess.com"]
[Source "ChessBase"]
[SourceQuality "1"]
[TimeControl "40/5400+30:1800+30"]

1. d4 {[%emt 0:00:00]} d5 {[%emt 0:00:30]} 2. c4 {[%emt 0:00:00]} dxc4 {[%emt 0:01:15]} 3. e3 {[%emt 0:00:16]} Nf6 {[%emt 0:00:21]} 4. Bxc4 {[%emt 0:00:11]} e6 {[%emt 0:00:17]} 5. Nf3 {[%emt 0:00:19]} Nbd7 {[%emt 0:01:17]} 6. O-O {[%emt 0:00:52]} a6 {[%emt 0:00:22]} 7. Nbd2 {[%emt 0:01:45]} b5 {[%emt 0:01:35]} 8. Be2 {[%emt 0:00:18]} Bb7 {[%emt 0:02:28]} 9. a4 {[%emt 0:00:25]} c6 {[%emt 0:15:06]} 10. e4 {[%emt 0:04:12]} Be7 {[%emt 0:01:08]} 11. e5 {[%emt 0:05:30]} Nd5 {[%emt 0:03:32]} 12. Ne4 {[%emt 0:00:05]} h6 {[%emt 0:00:28]} 13. Bd2 {[%emt 0:11:48]} O-O {[%emt 0:05:48]} 14. Qc2 {[%emt 0:08:13]} b4 {[%emt 0:25:42]} 15. a5 {[%emt 0:09:22]} c5 {[%emt 0:00:20]} 16. Nxc5 {[%emt 0:00:08]} Nxc5 {[%emt 0:00:51]} 17. dxc5 {[%emt 0:00:02]} Qc7 {[%emt 0:01:21]} 18. Rfc1 {[%emt 0:03:27]} Rfc8 {[%emt 0:00:44]} 19. Qc4 {[%emt 0:01:59]} Bxc5 {[%emt 0:04:50]} 20. Qg4 {[%emt 0:00:52]} Kf8 {[%emt 0:01:04]} 21. Bc4 {[%emt 0:05:02]} Qe7 {[%emt 0:12:45]} 22. Ne1 {[%emt 0:17:25]} f5 {[%emt 0:07:55]} 23. Qe2 {[%emt 0:04:29]} Qh4 {[%emt 0:04:42]} 24. Nd3 {[%emt 0:01:08]} Be7 {[%emt 0:00:28]} 25. Bxd5 {[%emt 0:00:58]} exd5 {[%emt 0:01:33]} 26. Nf4 {[%emt 0:01:02]} Ke8 {[%emt 0:02:19]} 27. g3 {[%emt 0:04:07]} Qg4 {[%emt 0:01:00]} 28. f3 {[%emt 0:02:07]} 1-0